Workbook

Sheet Main
A1: Finite Difference Solution - 2D Seepage
A2: CE En 544 - Brigham Young University
C4: Head 1: | G4: Head 1: | H4: 80 | I4: ="[" & lunit & "]" -> [ft] | L4: Length unit: | M4: ft
C5: Head 2: | G5: Head 2: | H5: 60 | I5: ="[" & lunit & "]" -> [ft] | L5: Time unit: | M5: day | Q5: Arrow size: | R5: 20
C6: Active: | G6: Cell Size: | H6: 10 | I6: ="[" & lunit & "]" -> [ft] | Q6: Arrow color:
C7: Background:
A10: Y | B10: =B11+cellsize -> 250
B11: 240
B12: 230
B13: 220
B14: 210
B15: 200
B16: 190
B17: 180
B18: 170 | G18: =H_1 -> 80 | H18: =H_1 -> 80 | I18: =H_1 -> 80 | J18: =H_1 -> 80 | K18: =H_1 -> 80 | L18: =H_1 -> 80 | M18: =H_1 -> 80 | N18: =H_1 -> 80 | O18: =(O19 + 0.5*N18 + 0.5*P18)/2 -> 75.80917675 | P18: =(P19 + 0.5*O18 + 0.5*Q18)/2 -> 73.16633718 | Q18: =(Q19 + 0.5*P18 + 0.5*R18)/2 -> 71.01507807 | R18: =(R19 + 0.5*Q18 + 0.5*S18)/2 -> 68.98406388 | S18: =(S19 + 0.5*R18 + 0.5*T18)/2 -> 66.83290331 | T18: =(T19 + 0.5*S18 + 0.5*U18)/2 -> 64.19029999 | U18: =H_2 -> 60 | V18: =H_2 -> 60 | W18: =H_2 -> 60 | X18: =H_2 -> 60 | Y18: =H_2 -> 60 | Z18: =H_2 -> 60 | AA18: =H_2 -> 60 | AB18: =H_2 -> 60
B19: 160 | G19: =(0.5*G18 + 0.5*G20 + H19)/2 -> 79.12330812 | H19: =(H18 + H20 + G19 + I19)/4 -> 79.10772821 | I19: =(I18 + I20 + H19 + J19)/4 -> 79.0586611 | J19: =(J18 + J20 + I19 + K19)/4 -> 78.96803528 | K19: =(K18 + K20 + J19 + L19)/4 -> 78.81775238 | L19: =(L18 + L20 + K19 + M19)/4 -> 78.56777246 | M19: =(M18 + M20 + L19 + N19)/4 -> 78.12159134 | N19: =(N18 + N20 + M19 + O19)/4 -> 77.21617749 | O19: =(O18 + O20 + N19 + P19)/4 -> 75.03518958 | P19: =(P18 + P20 + O19 + Q19)/4 -> 72.92055252 | Q19: =(Q18 + Q20 + P19 + R19)/4 -> 70.95496152 | R19: =(R18 + R20 + Q19 + S19)/4 -> 69.04414272 | S19: =(S18 + S20 + R19 + T19)/4 -> 67.07862946 | T19: =(T18 + T20 + S19 + U19)/4 -> 64.96415122 | U19: =(U18 + U20 + T19 + V19)/4 -> 62.78338482 | V19: =(V18 + V20 + U19 + W19)/4 -> 61.87805563 | W19: =(W18 + W20 + V19 + X19)/4 -> 61.43191251 | X19: =(X18 + X20 + W19 + Y19)/4 -> 61.18195211 | Y19: =(Y18 + Y20 + X19 + Z19)/4 -> 61.03168014 | Z19: =(Z18 + Z20 + Y19 + AA19)/4 -> 60.94106057 | AA19: =(AA18 + AA20 + Z19 + AB19)/4 -> 60.89199672 | AB19: =(0.5*AB18 + 0.5*AB20 + AA19)/2 -> 60.87641778
B20: 150 | G20: =(0.5*G19 + 0.5*G21 + H20)/2 -> 78.27778114 | H20: =(H19 + H21 + G20 + I20)/4 -> 78.2489474 | I20: =(I19 + I21 + H20 + J20)/4 -> 78.15888474 | J20: =(J19 + J21 + I20 + K20)/4 -> 77.99573156 | K20: =(K19 + K21 + J20 + L20)/4 -> 77.73520585 | L20: =(L19 + L21 + K20 + M20)/4 -> 77.33175046 | M20: =(M19 + M21 + L20 + N20)/4 -> 76.70242034 | N20: =(N19 + N21 + M20 + O20)/4 -> 75.70793531 | O20: =(O19 + O21 + N20 + P20)/4 -> 74.19485901 | P20: =(P19 + P21 + O20 + Q20)/4 -> 72.52573003 | Q20: =(Q19 + Q21 + P20 + R20)/4 -> 70.84008116 | R20: =(R19 + R21 + Q20 + S20)/4 -> 69.15892406 | S20: =(S19 + S21 + R20 + T20)/4 -> 67.47332766 | T20: =(T19 + T21 + S20 + U20)/4 -> 65.80429626 | U20: =(U19 + U21 + T20 + V20)/4 -> 64.29133715 | V20: =(V19 + V21 + U20 + W20)/4 -> 63.29692937 | W20: =(W19 + W21 + V20 + X20)/4 -> 62.66764622 | X20: =(X19 + X21 + W20 + Y20)/4 -> 62.26421949 | Y20: =(Y19 + Y21 + X20 + Z20)/4 -> 62.00371146 | Z20: =(Z19 + Z21 + Y20 + AA20)/4 -> 61.84056894 | AA20: =(AA19 + AA21 + Z20 + AB20)/4 -> 61.75051199 | AB20: =(0.5*AB19 + 0.5*AB21 + AA20)/2 -> 61.72167998
B21: 140 | G21: =(0.5*G20 + 0.5*G22 + H21)/2 -> 77.48993033 | H21: =(H20 + H22 + G21 + I21)/4 -> 77.4514017 | I21: =(I20 + I22 + H21 + J21)/4 -> 77.33220514 | J21: =(J20 + J22 + I21 + K21)/4 -> 77.12080672 | K21: =(K20 + K22 + J21 + L21)/4 -> 76.79559556 | L21: =(L20 + L22 + K21 + M21)/4 -> 76.32161006 | M21: =(M20 + M22 + L21 + N21)/4 -> 75.64841164 | N21: =(N20 + N22 + M21 + O21)/4 -> 74.71829255 | O21: =(O20 + O22 + N21 + P21)/4 -> 73.51058999 | P21: =(P20 + P22 + O21 + Q21)/4 -> 72.14743678 | Q21: =(Q20 + Q22 + P21 + R21)/4 -> 70.72071849 | R21: =(R20 + R22 + Q21 + S21)/4 -> 69.27815388 | S21: =(S20 + S22 + R21 + T21)/4 -> 67.85146942 | T21: =(T20 + T22 + S21 + U21)/4 -> 66.48837673 | U21: =(U20 + U22 + T21 + V21)/4 -> 65.2807452 | V21: =(V20 + V22 + U21 + W21)/4 -> 64.35068506 | W21: =(W20 + W22 + V21 + X21)/4 -> 63.67752973 | X21: =(X20 + X22 + W21 + Y21)/4 -> 63.20357415 | Y21: =(Y20 + Y22 + X21 + Z21)/4 -> 62.8783831 | Z21: =(Z20 + Z22 + Y21 + AA21)/4 -> 62.66699747 | AA21: =(AA20 + AA22 + Z21 + AB21)/4 -> 62.54780797 | AB21: =(0.5*AB20 + 0.5*AB22 + AA21)/2 -> 62.50928149
B22: 130 | G22: =(0.5*G21 + 0.5*G23 + H22)/2 -> 76.77914885 | H22: =(H21 + H23 + G22 + I22)/4 -> 76.73453234 | I22: =(I21 + I23 + H22 + J22)/4 -> 76.59773586 | J22: =(J21 + J23 + I22 + K22)/4 -> 76.35970321 | K22: =(K21 + K23 + J22 + L22)/4 -> 76.00476836 | L22: =(L21 + L23 + K22 + M22)/4 -> 75.51069164 | M22: =(M21 + M23 + L22 + N22)/4 -> 74.85133307 | N22: =(N21 + N23 + M22 + O22)/4 -> 74.00624317 | O22: =(O21 + O23 + N22 + P22)/4 -> 72.98178197 | P22: =(P21 + P23 + O22 + Q22)/4 -> 71.83271925 | Q22: =(Q21 + Q23 + P22 + R22)/4 -> 70.61721282 | R22: =(R21 + R23 + Q22 + S22)/4 -> 69.38151404 | S22: =(S21 + S23 + R22 + T22)/4 -> 68.16602947 | T22: =(T21 + T23 + S22 + U22)/4 -> 67.0170056 | U22: =(U21 + U23 + T22 + V22)/4 -> 65.99259092 | V22: =(V21 + V23 + U22 + W22)/4 -> 65.14754456 | W22: =(W21 + W23 + V22 + X22)/4 -> 64.48822178 | X22: =(X21 + X23 + W22 + Y22)/4 -> 63.99417237 | Y22: =(Y21 + Y23 + X22 + Z22)/4 -> 63.63925719 | Z22: =(Z21 + Z23 + Y22 + AA22)/4 -> 63.40123765 | AA22: =(AA21 + AA23 + Z22 + AB22)/4 -> 63.2644486 | AB22: =(0.5*AB21 + 0.5*AB23 + AA22)/2 -> 63.21983437
B23: 120 | G23: =(0.5*G22 + 0.5*G24 + H23)/2 -> 76.15761552 | H23: =(H22 + H24 + G23 + I23)/4 -> 76.10985336 | I23: =(I22 + I24 + H23 + J23)/4 -> 75.9645132 | J23: =(J22 + J24 + I23 + K23)/4 -> 75.71551247 | K23: =(K22 + K24 + J23 + L23)/4 -> 75.35309377 | L23: =(L22 + L24 + K23 + M23)/4 -> 74.86506601 | M23: =(M22 + M24 + L23 + N23)/4 -> 74.23999705 | N23: =(N22 + N24 + M23 + O23)/4 -> 73.47357661 | O23: =(O22 + O24 + N23 + P23)/4 -> 72.57758726 | P23: =(P22 + P24 + O23 + Q23)/4 -> 71.5844574 | Q23: =(Q22 + Q24 + P23 + R23)/4 -> 70.53391146 | R23: =(R22 + R24 + Q23 + S23)/4 -> 69.46467182 | S23: =(S22 + S24 + R23 + T23)/4 -> 68.41414037 | T23: =(T22 + T24 + S23 + U23)/4 -> 67.42103645 | U23: =(U22 + U24 + T23 + V23)/4 -> 66.52507911 | V23: =(V22 + V24 + U23 + W23)/4 -> 65.75869091 | W23: =(W22 + W24 + V23 + X23)/4 -> 65.13365061 | X23: =(X22 + X24 + W23 + Y23)/4 -> 64.64564627 | Y23: =(Y22 + Y24 + X23 + Z23)/4 -> 64.28324537 | Z23: =(Z22 + Z24 + Y23 + AA23)/4 -> 64.03425696 | AA23: =(AA22 + AA24 + Z23 + AB23)/4 -> 63.88892395 | AB23: =(0.5*AB22 + 0.5*AB24 + AA23)/2 -> 63.84116397
B24: 110 | G24: =(0.5*G23 + 0.5*G25 + H24)/2 -> 75.63162436 | H24: =(H23 + H25 + G24 + I24)/4 -> 75.58276454 | I24: =(I23 + I25 + H24 + J24)/4 -> 75.43496331 | J24: =(J23 + J25 + I24 + K24)/4 -> 75.18475198 | K24: =(K23 + K25 + J24 + L24)/4 -> 74.82704066 | L24: =(L23 + L25 + K24 + M24)/4 -> 74.35649414 | M24: =(M23 + M25 + L24 + N24)/4 -> 73.77002528 | N24: =(N23 + N25 + M24 + O24)/4 -> 73.07049193 | O24: =(O23 + O25 + N24 + P24)/4 -> 72.2705462 | P24: =(P23 + P25 + O24 + Q24)/4 -> 71.39362485 | Q24: =(Q23 + Q25 + P24 + R24)/4 -> 70.46931699 | R24: =(R23 + R25 + Q24 + S24)/4 -> 69.5291345 | S24: =(S23 + S25 + R24 + T24)/4 -> 68.60483659 | T24: =(T23 + T25 + S24 + U24)/4 -> 67.72793328 | U24: =(U23 + U25 + T24 + V24)/4 -> 66.92801047 | V24: =(V23 + V25 + U24 + W24)/4 -> 66.22850135 | W24: =(W23 + W25 + V24 + X24)/4 -> 65.64205524 | X24: =(X23 + X25 + W24 + Y24)/4 -> 65.17152827 | Y24: =(Y23 + Y25 + X24 + Z24)/4 -> 64.81383242 | Z24: =(Z23 + Z25 + Y24 + AA24)/4 -> 64.56363211 | AA24: =(AA23 + AA25 + Z24 + AB24)/4 -> 64.4158374 | AB24: =(0.5*AB23 + 0.5*AB25 + AA24)/2 -> 64.36697955
B25: 100 | G25: =(0.5*G24 + 0.5*G26 + H25)/2 -> 75.203373 | H25: =(H24 + H26 + G25 + I25)/4 -> 75.15463076 | I25: =(I24 + I26 + H25 + J25)/4 -> 75.00783721 | J25: =(J24 + J26 + I25 + K25)/4 -> 74.76150518 | K25: =(K24 + K26 + J25 + L25)/4 -> 74.41383655 | L25: =(L24 + L26 + K25 + M25)/4 -> 73.96385854 | M25: =(M24 + M26 + L25 + N25)/4 -> 73.41313205 | N25: =(N24 + N26 + M25 + O25)/4 -> 72.76783383 | O25: =(O24 + O26 + N25 + P25)/4 -> 72.04049503 | P25: =(P24 + P26 + O25 + Q25)/4 -> 71.25019313 | Q25: =(Q24 + Q26 + P25 + R25)/4 -> 70.42061143 | R25: =(R24 + R26 + Q25 + S25)/4 -> 69.57772677 | S25: =(S24 + S26 + R25 + T25)/4 -> 68.74815221 | T25: =(T24 + T26 + S25 + U25)/4 -> 67.95786341 | U25: =(U24 + U26 + T25 + V25)/4 -> 67.23054166 | V25: =(V24 + V26 + U25 + W25)/4 -> 66.5852621 | W25: =(W24 + W26 + V25 + X25)/4 -> 66.03455381 | X25: =(X24 + X26 + W25 + Y25)/4 -> 65.58459203 | Y25: =(Y24 + Y26 + X25 + Z25)/4 -> 65.23693663 | Z25: =(Z24 + Z26 + Y25 + AA25)/4 -> 64.99061427 | AA25: =(AA24 + AA26 + Z25 + AB25)/4 -> 64.84382648 | AB25: =(0.5*AB24 + 0.5*AB26 + AA25)/2 -> 64.79508597
B26: 90 | G26: =(0.5*G25 + 0.5*G27 + H26)/2 -> 74.87262812 | H26: =(H25 + H27 + G26 + I26)/4 -> 74.82456314 | I26: =(I25 + I27 + H26 + J26)/4 -> 74.6802644 | J26: =(J25 + J27 + I26 + K26)/4 -> 74.43960984 | K26: =(K25 + K27 + J26 + L26)/4 -> 74.10295675 | L26: =(L25 + L27 + K26 + M26)/4 -> 73.67198644 | M26: =(M25 + M27 + L26 + N26)/4 -> 73.15082564 | N26: =(N25 + N27 + M26 + O26)/4 -> 72.54723148 | O26: =(O25 + O27 + N26 + P26)/4 -> 71.87342219 | P26: =(P25 + P27 + O26 + Q26)/4 -> 71.14605646 | Q26: =(Q25 + Q27 + P26 + R26)/4 -> 70.38522402 | R26: =(R25 + R27 + Q26 + S26)/4 -> 69.61302405 | S26: =(S25 + S27 + R26 + T26)/4 -> 68.852197 | T26: =(T25 + T27 + S26 + U26)/4 -> 68.12484126 | U26: =(U25 + U27 + T26 + V26)/4 -> 67.45104522 | V26: =(V25 + V27 + U26 + W26)/4 -> 66.84746593 | W26: =(W25 + W27 + V26 + X26)/4 -> 66.32632003 | X26: =(X25 + X27 + W26 + Y26)/4 -> 65.89536336 | Y26: =(Y25 + Y27 + X26 + Z26)/4 -> 65.55872164 | Z26: =(Z25 + Z27 + Y26 + AA26)/4 -> 65.31807553 | AA26: =(AA25 + AA27 + Z26 + AB26)/4 -> 65.17378188 | AB26: =(0.5*AB25 + 0.5*AB27 + AA26)/2 -> 65.12571838
B27: 80 | G27: =(0.5*G26 + 0.5*G28 + H27)/2 -> 74.63803663 | H27: =(H26 + H28 + G27 + I27)/4 -> 74.59074497 | I27: =(I26 + I28 + H27 + J27)/4 -> 74.44906311 | J27: =(J26 + J28 + I27 + K27)/4 -> 74.21372877 | K27: =(K26 + K28 + J27 + L27)/4 -> 73.88640991 | L27: =(L26 + L28 + K27 + M27)/4 -> 73.47032066 | M27: =(M26 + M28 + L27 + N27)/4 -> 72.97096845 | N27: =(N26 + N28 + M27 + O27)/4 -> 72.39686017 | O27: =(O26 + O28 + N27 + P27)/4 -> 71.75992175 | P27: =(P26 + P28 + O27 + Q27)/4 -> 71.0754024 | Q27: =(Q26 + Q28 + P27 + R27)/4 -> 70.36122003 | R27: =(R26 + R28 + Q27 + S27)/4 -> 69.6369642 | S27: =(S26 + S28 + R27 + T27)/4 -> 68.92278615 | T27: =(T26 + T28 + S27 + U27)/4 -> 68.23827489 | U27: =(U26 + U28 + T27 + V27)/4 -> 67.60134735 | V27: =(V26 + V28 + U27 + W27)/4 -> 67.02725147 | W27: =(W26 + W28 + V27 + X27)/4 -> 66.52791194 | X27: =(X26 + X28 + W27 + Y27)/4 -> 66.11183451 | Y27: =(Y26 + Y28 + X27 + Z27)/4 -> 65.78452566 | Z27: =(Z26 + Z28 + Y27 + AA27)/4 -> 65.54919883 | AA27: =(AA26 + AA28 + Z27 + AB27)/4 -> 65.40752152 | AB27: =(0.5*AB26 + 0.5*AB28 + AA27)/2 -> 65.36023117
B28: 70 | G28: =(0.5*G27 + 0.5*G29 + H28)/2 -> 74.49805282 | H28: =(H27 + H29 + G28 + I28)/4 -> 74.45133327 | I28: =(I27 + I29 + H28 + J28)/4 -> 74.31153056 | J28: =(J27 + J29 + I28 + K28)/4 -> 74.07984849 | K28: =(K27 + K29 + J28 + L28)/4 -> 73.75864974 | L28: =(L27 + L29 + K28 + M28)/4 -> 73.35193417 | M28: =(M27 + M29 + L28 + N28)/4 -> 72.86588371 | N28: =(N27 + N29 + M28 + O28)/4 -> 72.30933537 | O28: =(O27 + O29 + N28 + P28)/4 -> 71.69401865 | P28: =(P27 + P29 + O28 + Q28)/4 -> 71.03442775 | Q28: =(Q27 + Q29 + P28 + R28)/4 -> 70.34730583 | R28: =(R27 + R29 + Q28 + S28)/4 -> 69.65084278 | S28: =(S27 + S29 + R28 + T28)/4 -> 68.96372461 | T28: =(T27 + T29 + S28 + U28)/4 -> 68.30414077 | U28: =(U27 + U29 + T28 + V28)/4 -> 67.6888336 | V28: =(V27 + V29 + U28 + W28)/4 -> 67.13229627 | W28: =(W27 + W29 + V28 + X28)/4 -> 66.64625721 | X28: =(X27 + X29 + W28 + Y28)/4 -> 66.23955236 | Y28: =(Y27 + Y29 + X28 + Z28)/4 -> 65.91836279 | Z28: =(Z27 + Z29 + Y28 + AA28)/4 -> 65.68668764 | AA28: =(AA27 + AA29 + Z28 + AB28)/4 -> 65.54688914 | AB28: =(0.5*AB27 + 0.5*AB29 + AA28)/2 -> 65.50017078
B29: 60 | G29: =(0.5*G28 + 0.5*H29) -> 74.45153289 | H29: =(H28 + 0.5*G29 + 0.5*I29)/2 -> 74.40502126 | I29: =(I28 + 0.5*H29 + 0.5*J29)/2 -> 74.26589387 | J29: =(J28 + 0.5*I29 + 0.5*K29)/2 -> 74.03550137 | K29: =(K28 + 0.5*J29 + 0.5*L29)/2 -> 73.71642292 | L29: =(L28 + 0.5*K29 + 0.5*M29)/2 -> 73.3128991 | M29: =(M28 + 0.5*L29 + 0.5*N29)/2 -> 72.83131344 | N29: =(N28 + 0.5*M29 + 0.5*O29)/2 -> 72.28059554 | O29: =(O28 + 0.5*N29 + 0.5*P29)/2 -> 71.67240631 | P29: =(P28 + 0.5*O29 + 0.5*Q29)/2 -> 71.02100069 | Q29: =(Q28 + 0.5*P29 + 0.5*R29)/2 -> 70.34274925 | R29: =(R28 + 0.5*Q29 + 0.5*S29)/2 -> 69.65539291 | S29: =(S28 + 0.5*R29 + 0.5*T29)/2 -> 68.97714503 | T29: =(T28 + 0.5*S29 + 0.5*U29)/2 -> 68.32574613 | U29: =(U28 + 0.5*T29 + 0.5*V29)/2 -> 67.717566 | V29: =(V28 + 0.5*U29 + 0.5*W29)/2 -> 67.16685865 | W29: =(W28 + 0.5*V29 + 0.5*X29)/2 -> 66.68528392 | X29: =(X28 + 0.5*W29 + 0.5*Y29)/2 -> 66.28177044 | Y29: =(Y28 + 0.5*X29 + 0.5*Z29)/2 -> 65.96270085 | Z29: =(Z28 + 0.5*Y29 + 0.5*AA29)/2 -> 65.73231507 | AA29: =(AA28 + 0.5*Z29 + 0.5*AB29)/2 -> 65.59319176 | AB29: =(0.5*AB28 + 0.5*AA29) -> 65.54668127
B30: 50
B31: 40
B32: 30
B33: 20
B34: 10
B35: 0
C36: 0 | D36: =C36+cellsize -> 10 | E36: 20 | F36: 30 | G36: 40 | H36: 50 | I36: 60 | J36: 70 | K36: 80 | L36: 90 | M36: 100 | N36: 110 | O36: 120 | P36: 130 | Q36: 140 | R36: 150 | S36: 160 | T36: 170 | U36: 180 | V36: 190 | W36: 200 | X36: 210 | Y36: 220 | Z36: 230 | AA36: 240 | AB36: 250 | AC36: 260 | AD36: 270 | AE36: 280 | AF36: 290
C37: X

Sheet Gradient
A1: Hydraulic Gradient
K2: Critical gradient: | L2: 0.2 | M2: ="[" & lunit & "/" & tunit & "]" -> [ft/day]
D6: Max gradient: | E6: =MAX(C10:AF35) -> 0.3503428068 | F6: ="[" & lunit & "/" & tunit & "]" -> [ft/day]
A10: Y | B10: =B11+cellsize -> 250
B11: 240
B12: 230
B13: 220
B14: 210
B15: 200
B16: 190
B17: 180
B18: 170 | G18: 0.0876713725 | H18: 0.0892293627 | I18: 0.09413609004 | J18: 0.1031987116 | K18: 0.1182270777 | L18: 0.1432252124 | M18: 0.1878436087 | N18: 0.3484349375 | O18: 0.3503428068 | P18: 0.2409630313 | Q18: 0.2092004163 | R18: 0.2091946162 | S18: 0.2409431549 | T18: 0.3502966669 | U18: 0.3483765098 | V18: 0.1878029271 | W18: 0.1431889103 | X18: 0.1181930247 | Y18: 0.1031659181 | Z18: 0.09410401693 | AA18: 0.08919766469 | AB18: 0.08763978739
B19: 160 | G19: 0.0861271834 | H19: 0.08761442161 | I19: 0.09232251462 | J19: 0.1009369267 | K19: 0.1149968325 | L19: 0.1378808631 | M19: 0.1781937065 | N19: 0.2643308642 | O19: 0.2294490335 | P19: 0.2065115023 | Q19: 0.1940181823 | R19: 0.1940133522 | S19: 0.2064964039 | T19: 0.2294220054 | U19: 0.2642865326 | V19: 0.178156358 | W19: 0.137846391 | X19: 0.1149639224 | Y19: 0.1009049464 | Z19: 0.09229108611 | AA19: 0.08758328525 | AB19: 0.08609613762
B20: 150 | G20: 0.08172182101 | H20: 0.08303146081 | I20: 0.08724836064 | J20: 0.0947616951 | K20: 0.1064208968 | L20: 0.1236132461 | M20: 0.1479327109 | N20: 0.1769715276 | O20: 0.1764300417 | P20: 0.1721361965 | Q20: 0.1687474674 | R20: 0.1687435248 | S20: 0.1721242046 | T20: 0.1764095702 | U20: 0.1769422608 | V20: 0.1479022805 | W20: 0.1235828866 | X20: 0.1063907895 | Y20: 0.0947318131 | Z20: 0.08721863382 | AA20: 0.08300181868 | AB20: 0.08169221256
B21: 140 | G21: 0.07503250498 | H21: 0.076132209 | I21: 0.07979031959 | J21: 0.0860910137 | K21: 0.09530563968 | L21: 0.1076154637 | M21: 0.1224470331 | N21: 0.1366216782 | O21: 0.1421352569 | P21: 0.1437333995 | Q21: 0.1438964442 | R21: 0.1438932596 | S21: 0.1437238329 | T21: 0.1421193622 | U21: 0.1366000895 | V21: 0.1224226245 | W21: 0.107589663 | X21: 0.09527908283 | Y21: 0.08606400118 | Z21: 0.07976301719 | AA21: 0.07610473595 | AB21: 0.07500499372
B22: 130 | G22: 0.06676670293 | H22: 0.06768963597 | I22: 0.07090790318 | J22: 0.07626532874 | K22: 0.08369190836 | L22: 0.09289832345 | M22: 0.1030424982 | N22: 0.1123013327 | O22: 0.1182663795 | P22: 0.1215337168 | Q22: 0.1229157852 | R22: 0.1229132642 | S22: 0.1215261989 | T22: 0.1182540653 | U22: 0.1122848164 | V22: 0.1030230676 | W22: 0.09287695296 | X22: 0.08366920112 | Y22: 0.07624166368 | Z22: 0.07088356054 | AA22: 0.06766487476 | AB22: 0.06674183184
B23: 120 | G23: 0.05757618074 | H23: 0.05839363898 | I23: 0.06139248265 | J23: 0.06622717596 | K23: 0.07263563882 | L23: 0.08017525904 | M23: 0.08811269689 | N23: 0.09538472349 | O23: 0.100929119 | P23: 0.1045160618 | Q23: 0.1062470113 | R23: 0.1062450751 | S23: 0.1045103081 | T23: 0.1009197402 | U23: 0.09537212426 | V23: 0.08809751852 | W23: 0.08015807904 | X23: 0.07261688161 | Y23: 0.06620715735 | Z23: 0.0613714928 | AA23: 0.0583720137 | AB23: 0.05755438067
B24: 110 | G24: 0.04796291682 | H24: 0.04876408008 | I24: 0.05180954316 | J24: 0.05656298936 | K24: 0.06261517335 | L24: 0.06945329553 | M24: 0.07644527429 | N24: 0.08286357597 | O24: 0.08803948508 | P24: 0.0915993481 | Q24: 0.09339652519 | R24: 0.09339509715 | S24: 0.09159510911 | T24: 0.08803257617 | U24: 0.08285424286 | V24: 0.07643384292 | W24: 0.06944006808 | X24: 0.06260037979 | Y24: 0.05654681335 | Z24: 0.05179220172 | AA24: 0.04874591916 | AB24: 0.04794452195
B25: 100 | G25: 0.0382625638 | H25: 0.03915144837 | I25: 0.04254846646 | J25: 0.04764724894 | K25: 0.05386482829 | L25: 0.06062156095 | M25: 0.06734074143 | N25: 0.07344992725 | O25: 0.07843719881 | P25: 0.08193476534 | Q25: 0.08372896816 | R25: 0.08372796961 | S25: 0.08193180278 | T25: 0.07843236801 | U25: 0.07344337359 | V25: 0.06733262913 | W25: 0.06061202284 | X25: 0.05385393639 | Y25: 0.04763503271 | Z25: 0.04253500007 | AA25: 0.03913700649 | AB25: 0.03824782833
B26: 90 | G26: 0.02867329952 | H26: 0.02979042784 | I26: 0.03392765202 | J26: 0.03979195192 | K26: 0.04656825734 | L26: 0.05362250442 | M26: 0.06042757968 | N26: 0.06650927082 | O26: 0.07144965947 | P26: 0.07492145567 | Q26: 0.07670910514 | R26: 0.07670845211 | S26: 0.0749195222 | T26: 0.07144651653 | U26: 0.06650501689 | V26: 0.0604223113 | W26: 0.05361627899 | X26: 0.04656106131 | Y26: 0.0397836926 | Z26: 0.03391821753 | AA26: 0.02977990379 | AB26: 0.02866241203
B27: 80 | G27: 0.01931707937 | H27: 0.02091760747 | I27: 0.02636819998 | J27: 0.03339213594 | K27: 0.04096370591 | L27: 0.04848900845 | M27: 0.05553188006 | N27: 0.06170968457 | O27: 0.0666790779 | P27: 0.07015747379 | Q27: 0.07194686011 | R27: 0.07194646018 | S27: 0.07015629729 | T27: 0.06667718899 | U27: 0.06170717228 | V27: 0.05552883383 | W27: 0.04848548819 | X27: 0.04095970795 | Y27: 0.0333875544 | Z27: 0.02636279963 | AA27: 0.02091115305 | AB27: 0.01931017662
B28: 70 | G28: 0.01043023408 | H28: 0.01316103503 | I28: 0.02070949136 | J28: 0.02904495397 | K28: 0.03737501495 | L28: 0.04532700199 | M28: 0.05259557688 | N28: 0.05888095747 | O28: 0.06389540441 | P28: 0.06739054459 | Q28: 0.0691853669 | R28: 0.06918511847 | S28: 0.0673898228 | T28: 0.06389427517 | U28: 0.05887951636 | V28: 0.05259393133 | W28: 0.04532525138 | X28: 0.03737322974 | Y28: 0.02904314804 | Z28: 0.02070756542 | AA28: 0.01315864108 | AB28: 0.01042740993
B29: 60 | G29: 0.00657834153 | H29: 0.01037316724 | I29: 0.01903127573 | J29: 0.02782917825 | K29: 0.03637606044 | L29: 0.04442731994 | M29: 0.05173084465 | N29: 0.0580166019 | O29: 0.06301681484 | P29: 0.06649638801 | Q29: 0.06828186073 | R29: 0.06828165064 | S29: 0.06649578095 | T29: 0.06301587633 | U29: 0.05801542855 | V29: 0.05172954893 | W29: 0.04442601452 | X29: 0.03637484456 | Y29: 0.02782812559 | Z29: 0.01903041596 | AA29: 0.01037241482 | AB29: 0.006577479376
B30: 50
B31: 40
B32: 30
B33: 20
B34: 10
B35: 0
C36: 0 | D36: =C36+cellsize -> 10 | E36: 20 | F36: 30 | G36: 40 | H36: 50 | I36: 60 | J36: 70 | K36: 80 | L36: 90 | M36: 100 | N36: 110 | O36: 120 | P36: 130 | Q36: 140 | R36: 150 | S36: 160 | T36: 170 | U36: 180 | V36: 190 | W36: 200 | X36: 210 | Y36: 220 | Z36: 230 | AA36: 240 | AB36: 250 | AC36: 260 | AD36: 270 | AE36: 280 | AF36: 290
C37: X

Sheet Flow Rate
A1: Flow Rate
C3: K: | D3: 0.5 | E3: ="[" & lunit & "/" & tunit & "]" -> [ft/day]
C4: Problem length (transverse): | D4: 200 | E4: ="[" & lunit & "]" -> [ft]
C5: Head boundary: | D5: 2 | E5: <-- Select 1 or 2
B8: xi: | C8: 180 | D8: 190 | E8: 200 | F8: 210 | G8: 220 | H8: 230 | I8: 240 | J8: 250
B9: Ai: | C9: =cellsize/2 -> 5 | D9: =cellsize -> 10 | E9: =cellsize -> 10 | F9: =cellsize -> 10 | G9: =cellsize -> 10 | H9: =cellsize -> 10 | I9: =cellsize -> 10 | J9: =cellsize/2 -> 5
B10: dh/dy: | C10: =(Main!$U$18 - Main!$U$19)/cellsize -> -0.27833829 | D10: =(Main!$V$18 - Main!$V$19)/cellsize -> -0.1878054085 | E10: =(Main!$W$18 - Main!$W$19)/cellsize -> -0.1431911146 | F10: =(Main!$X$18 - Main!$X$19)/cellsize -> -0.1181950831 | G10: =(Main!$Y$18 - Main!$Y$19)/cellsize -> -0.1031678913 | H10: =(Main!$Z$18 - Main!$Z$19)/cellsize -> -0.09410593792 | I10: =(Main!$AA$18 - Main!$AA$19)/cellsize -> -0.08919955448 | J10: =(Main!$AB$18 - Main!$AB$19)/cellsize -> -0.08764166177
B11: vi: | C11: =k*C10 -> -0.139169145 | D11: =k*D10 -> -0.09390270426 | E11: =k*E10 -> -0.07159555731 | F11: =k*F10 -> -0.05909754154 | G11: =k*G10 -> -0.05158394566 | H11: =k*H10 -> -0.04705296896 | I11: =k*I10 -> -0.04459977724 | J11: =k*J10 -> -0.04382083088
B12: qi: | C12: =C9*C11 -> -0.6958457249 | D12: =D9*D11 -> -0.9390270426 | E12: =E9*E11 -> -0.7159555731 | F12: =F9*F11 -> -0.5909754154 | G12: =G9*G11 -> -0.5158394566 | H12: =H9*H11 -> -0.4705296896 | I12: =I9*I11 -> -0.4459977724 | J12: =J9*J11 -> -0.2191041544
B14: Unit Q: | C14: =SUM(C12:J12) -> -4.593274829 | D14: ="["&lunit&"^3/"&tunit&"/"&lunit&"]" -> [ft^3/day/ft]
B15: Total Q: | C15: =unitq*length -> -918.6549658 | D15: ="["&lunit&"^3/"&tunit&"]" -> [ft^3/day]
